Cogmind - Beta 13 @@@ ROGUE MODE // 2024.04.01 @ 01:43:28 Player: BigMaxPorter Result: Destroyed by P-60 Hacker with Shock Rifle Performance ------------- Evolutions (1) 500 Regions Visited (5) 1000 Robots Destroyed (31) 155 Value Destroyed (1341) 1341 Prototype IDs (2) 40 Alien Tech Used (0) 0 Bonus (200) 200 TOTAL SCORE: 3236 Bonus ------- Entered Garrisons 200 Cogmind --------- Core Integrity 0/400 Matter 196/300 Energy 78/150 System Corruption 4% Temperature Cool (0) Movement Core (150) Ox2 Location -9/Garrison Parts ------- > --- POWER (1) -------- Micro Nuclear Core > --- PROPULSION (4) --- (None) > --- UTILITY (2) ------ (None) > --- WEAPON (2) ------- Field Laser > --- INVENTORY (5) ---- Large Storage Unit Improved Light Cannon Assault Cannon Peak State ------------ > --- POWER ------------ Light Nuclear Core > --- PROPULSION ------- Aluminum Leg Aluminum Leg Aluminum Leg > --- UTILITY ---------- Sensor Array Hardened Medium Armor Plating > --- WEAPON ----------- Improved EM Shotgun Assault Cannon > --- INVENTORY -------- Large Storage Unit Field Laser Improved Light Cannon Assault Cannon Rocket Launcher [Rating: 17] Favorites ----------- Power Light Nuclear Core Engine Light Ion Engine Power Core Light Nuclear Core Propulsion Aluminum Leg Leg Aluminum Leg Wheel Armored Wheel Utility Sensor Array Device Sensor Array Storage Large Storage Unit Processor Transport Network Coupler Protection Hardened Medium Armor Plating Weapon Particle Gun Energy Gun Particle Gun Ballistic Gun Light Assault Rifle Ballistic Cannon Assault Cannon Launcher Rocket Launcher Special Weapon Mining Laser Build | -11 -10 -10 -9 -9 -9 ------- Run | Yrd Mat Min Mat Sto Gar Slots Evolved 2 | . . . 2 . . Power . | . . . . . . Propulsion 2 | . . . 2 . . Utility . | . . . . . . Weapon . | . . . . . . Parts Attached 53 | 7 9 9 21 2 5 Power 7 | 1 2 1 2 . 1 Engine 4 | 1 1 1 1 . . Core 3 | . 1 . 1 . 1 Reactor . | . . . . . . Propulsion 12 | 2 1 3 6 . . Treads . | . . . . . . Leg 8 | 2 1 3 2 . . Wheel 4 | . . . 4 . . Hover . | . . . . . . Flight . | . . . . . . Utility 11 | 2 3 3 2 . 1 Device 5 | 1 1 2 . . 1 Storage 3 | 1 1 1 . . . Processor 1 | . 1 . . . . Hackware . | . . . . . . Protection 2 | . . . 2 . . Artifact . | . . . . . . Weapon 23 | 2 3 2 11 2 3 Energy Gun 9 | 2 . 1 4 1 1 Energy Cannon . | . . . . . . Ballistic Gun 1 | . 1 . . . . Ballistic Cannon 5 | . . 1 3 1 . Launcher 6 | . . . 4 . 2 Special Weapon 2 | . 2 . . . . Impact Weapon . | . . . . . . Slashing Weapon . | . . . . . . Piercing Weapon . | . . . . . . Special Melee Weapon . | . . . . . . Unidentified Prototypes 2 | . . . 2 . . Parts Lost 28 | . 8 1 10 2 7 Power 3 | . 1 . 1 1 . Propulsion 10 | . 2 . 4 . 4 Utility 5 | . . 1 2 1 1 Weapon 10 | . 5 . 3 . 2 Highest Loss Streak 9 | . 8 1 9 2 6 To Critical Strikes . | . . . . . . Average Slot Usage (%) 77 | . 91 80 74 73 46 Engine 5 | . 11 8 1 4 . Core 4 | . . 1 8 . . Leg 19 | . 24 22 20 . . Wheel 4 | . . . 1 44 24 Device 11 | . 14 15 10 . 3 Storage 4 | . 7 8 1 . . Processor 1 | . 6 2 . . . Protection 4 | . . . 9 4 . Energy Gun 11 | . 20 9 9 8 9 Ballistic Cannon 8 | . . 11 9 8 7 Launcher 1 | . . . 1 5 1 Naked Turns . | . . . . . . Heaviest Build 32 | 13 28 30 32 12 9 Greatest Support 48 | 20 20 20 48 48 48 Greatest Overweight (x) 3 | . 1 1 3 . 2 Average Overweight (x) . | . . . . . . Largest Inventory Capacity 15 | 8 15 15 15 5 5 Average Capacity 8 | 6 9 11 6 5 5 Most Carried 5 | . 5 3 5 4 4 Average Carried 2 | . 1 1 2 3 3 Final Capacity 15 | 8 5 15 5 5 5 Final Carried 4 | . 3 1 4 4 3 Class Distribution -------------------- 100% | Mutant Dominant Class ---------------- Mutant | -10/Materials Mutant | -10/Mines Mutant | -9/Materials Mutant | -9/Storage Mutant | -9/Garrison Resources | -11 -10 -10 -9 -9 -9 ----------- Run | Yrd Mat Min Mat Sto Gar Matter Collected 833 | 270 64 112 121 158 108 Remotely . | . . . . . . Salvage Created 850 | 90 267 65 271 41 116 Parts 47 | 6 15 2 12 4 8 Haulers Intercepted 1 | . 1 . . . . Recyclers Shooed 2 | 1 . . 1 . . Parts Field Recycled . | . . . . . . Retrieved Matter . | . . . . . . Parts Self-Destructed . | . . . . . . Prevented . | . . . . . . Kills | -11 -10 -10 -9 -9 -9 ------- Run | Yrd Mat Min Mat Sto Gar Combat Hostiles Destroyed 25 | . 6 2 8 4 5 Guns 10 | . 3 . 3 2 2 Cannons 5 | . . 2 2 . 1 AOE 10 | . 3 . 3 2 2 Classes Destroyed 9 | 2 4 . 2 . 1 Worker 2 | . . . 2 . . Tunneler 1 | 1 . . . . . Hauler 1 | . 1 . . . . Recycler 1 | 1 . . . . . Operator 1 | . 1 . . . . Swarmer 7 | . 3 . . 4 . Grunt 12 | . 3 2 5 . 2 Sentry 3 | . . . 3 . . Programmer 3 | . . . . . 3 Best Kill Streak 7 | 2 3 2 7 4 2 Combat Bots Only 5 | . 3 2 5 4 2 Max Kills in Single Turn 3 | 1 3 1 1 2 2 Gunslinging . | . . . . . . Exploded 2 | . 2 . 1 2 2 Melee . | . . . . . . Uniques/NPCs Destroyed . | . . . . . . Combat | -11 -10 -10 -9 -9 -9 -------- Run | Yrd Mat Min Mat Sto Gar Hostile Shots Fired 267 | . 102 11 87 16 51 Missed 77 | . 42 2 17 6 10 Damage Taken 2682 | . 718 140 1158 122 544 Core 617 | . 200 12 202 21 182 Absorbed by Shields . | . . . . . . Core Remaining (%) 57 | 100 . 15 . . . Volleys Fired 103 | 4 37 9 27 8 18 Largest 2 | 2 2 1 2 2 2 Hottest 120 | 80 120 35 109 102 102 Shots Fired 157 | 8 57 9 47 9 27 Gun 102 | 8 54 . 17 7 16 Cannon 42 | . . 9 23 1 9 Launcher 10 | . . . 7 1 2 Special 3 | . 3 . . . . Kinetic 54 | . 12 9 23 1 9 Thermal 38 | . 3 . 12 7 16 Explosive 10 | . . . 7 1 2 Electromagnetic 55 | 8 42 . 5 . . Robot Hit Streak 5 | 2 4 2 5 4 5 Robot Miss Streak 5 | 1 5 4 4 4 3 Penetration Max . | . . . . . . Secondary Targets . | . . . . . . Shots Hit Robots 86 | 4 29 4 29 4 16 Core Hits 60 | 3 16 4 26 4 7 Critical Kills . | . . . . . . Critical Parts Destroyed . | . . . . . . Critical Strikes 2 | . . . 1 . 1 Burn 1 | . . . 1 . . Blast 1 | . . . . . 1 Melee Attacks . | . . . . . . Impact . | . . . . . . Slashing . | . . . . . . Piercing . | . . . . . . Sneak Attacks . | . . . . . . Combat Hostiles . | . . . . . . Follow-up Attacks . | . . . . . . Damage Inflicted 2295 | 48 550 84 970 217 426 Guns 875 | 48 385 . 204 68 170 Cannons 467 | . . 73 284 . 110 Explosions 919 | . 161 . 469 143 146 Melee . | . . . . . . Ramming 34 | . 4 11 13 6 . Kinetic 522 | . 55 73 284 . 110 Thermal 543 | . 161 . 144 68 170 Explosive 758 | . . . 469 143 146 Electromagnetic 438 | 48 330 . 60 . . Impact . | . . . . . . Slashing . | . . . . . . Piercing . | . . . . . . Highest Corruption 4 | . . . 2 2 4 Average Corruption 2 | . . . 2 2 2 Corruption Purged . | . . . . . . Corruption Blocked . | . . . . . . Effects 9 | . . . 5 2 2 Matter Fused 3 | . . . 1 1 1 Heat Flow Errors 1 | . . . . . 1 Parts Rejected 1 | . . . . 1 . Data Loss (minor) 3 | . . . 3 . . Misfires 1 | . . . 1 . . Overload Shots . | . . . . . . Overflow Damage 101 | . . . 101 . . Projectiles . | . . . . . . Explosions 101 | . . . 101 . . Melee . | . . . . . . Knockbacks 3 | . . 1 2 . . Impact 1 | . . 1 . . . Kinetic 2 | . . . 2 . . Secondary . | . . . . . . Self-Inflicted Damage 195 | . 1 . 158 36 . Shots 5 | . . . 4 1 . Rammed 5 | . 3 . . 2 . Targets Rammed 11 | . 3 3 3 2 . Kicked 6 | . . 3 3 . . Crushed . | . . . . . . Highest Temperature 498 | 54 108 7 498 81 270 Average Temperature 114 | 25 36 4 181 52 119 Received Heat Transfer 1047 | . 387 69 483 . 108 Effects 10 | . . . 9 . 1 Shutdowns 1 | . . . 1 . . Energy Bleed 2 | . . . 1 . 1 Interference 2 | . . . 2 . . Matter Decay 1 | . . . 1 . . Short Circuit 1 | . . . 1 . . Damage (major) 3 | . . . 3 . . Siege Activations . | . . . . . . Robots Corrupted . | . . . . . . Combat Hostiles . | . . . . . . Parts Fried 2 | 1 1 . . . . Impact Corruptions . | . . . . . . Robots Melted . | . . . . . . Combat Hostiles . | . . . . . . Parts Melted . | . . . . . . Heat Transferred 1088 | . 200 . 407 148 333 Parts Sabotaged . | . . . . . . Parts Stolen . | . . . . . . Parts Stripped . | . . . . . . Power Chain Reactions 2 | . 2 . . . . Alert | -11 -10 -10 -9 -9 -9 ------- Run | Yrd Mat Min Mat Sto Gar Peak Influence 257 | 10 163 113 235 152 257 Initial 98 | . 6 43 . 41 98 Average 67 | 4 86 59 56 119 151 Maximum Alert Level 1 | . . . 1 . 1 Low Security (%) 97 | 100 100 100 98 100 69 Level 1 2 | . . . 1 . 30 Level 2 . | . . . . . . Level 3 . | . . . . . . Level 4 . | . . . . . . Level 5 . | . . . . . . High Security . | . . . . . . Max Security . | . . . . . . Squads Dispatched 1 | . 1 . . . . Investigation 1 | . 1 . . . . Extermination . | . . . . . . Reinforcement . | . . . . . . Assault . | . . . . . . Garrison . | . . . . . . Intercept . | . . . . . . Searches Triggered . | . . . . . . Construction Impeded . | . . . . . . Haulers Reinforced . | . . . . . . Active Scanning Responses . | . . . . . . Cargo Convoy Interrupts . | . . . . . . Stealth | -11 -10 -10 -9 -9 -9 --------- Run | Yrd Mat Min Mat Sto Gar Distress Signals 2 | . 1 . 1 . . Communications Jammed . | . . . . . . Distress Signals . | . . . . . . Times Spotted 39 | . 11 3 15 4 6 Peak Tracking Total 6 | . 4 3 6 4 3 Tactical Retreats 2 | . . 1 1 . . Traps | -11 -10 -10 -9 -9 -9 ------- Run | Yrd Mat Min Mat Sto Gar Traps Triggered 1 | . . 1 . . . Indirectly . | . . . . . . Trap Hack Attempts . | . . . . . . Triggered . | . . . . . . Disarmed . | . . . . . . Reprogrammed . | . . . . . . Reused . | . . . . . . Traps Extracted . | . . . . . . Installed . | . . . . . . Triggered . | . . . . . . Machines | -11 -10 -10 -9 -9 -9 ---------- Run | Yrd Mat Min Mat Sto Gar Machines Disabled 8 | . 1 . 2 2 3 Max in Single Turn 2 | . 1 . 1 2 2 Garrison Relay 3 | . . . . . 3 Machines Repaired . | . . . . . . Machines Dismantled . | . . . . . . Machines Sabotaged . | . . . . . . Overloaded Fab Kills . | . . . . . . Hacking | -11 -10 -10 -9 -9 -9 --------- Run | Yrd Mat Min Mat Sto Gar Machines Accessed 5 | . 1 2 1 1 . Terminals . | . . . . . . Fabricators . | . . . . . . Repair Stations . | . . . . . . Recycling Units 1 | . 1 . . . . Scanalyzers 1 | . . . 1 . . Garrison Access 1 | . . . . 1 . Total Hacks 10 | . 3 2 2 3 . Successful 7 | . 1 2 2 2 . Failed 3 | . 2 . . 1 . Catastrophic . | . . . . . . Database Lockouts . | . . . . . . Manual . | . . . . . . Terminals . | . . . . . . Fabricators . | . . . . . . Repair Stations . | . . . . . . Recycling Units 3 | . 3 . . . . Scanalyzers 2 | . . . 2 . . Garrison Access 3 | . . . . 3 . Terminal Hacks 2 | . . 2 . . . Open Door 2 | . . 2 . . . Fabricator Hacks . | . . . . . . Repair Station Hacks . | . . . . . . Recycling Unit Hacks 1 | . 1 . . . . Recycle Component 1 | . 1 . . . . Scanalyzer 2 | . . . 2 . . Insert Component 1 | . . . 1 . . Analyze 1 | . . . 1 . . Garrison Access Hacks 2 | . . . . 2 . Unlock Access 1 | . . . . 1 . Coupler Status 1 | . . . . 1 . Unauthorized Hacks . | . . . . . . Terminals . | . . . . . . Fabricators . | . . . . . . Repair Stations . | . . . . . . Recycling Units . | . . . . . . Scanalyzers . | . . . . . . Garrison Access . | . . . . . . Data Cores Recovered 1 | . 1 . . . . Used . | . . . . . . Hacking Detections 3 | . 1 . 1 1 . Full Trace Events 2 | . 1 . . 1 . Feedback Events . | . . . . . . Feedback Blocked . | . . . . . . Robot Schematics Acquired . | . . . . . . Robots Built . | . . . . . . Authchips . | . . . . . . Time . | . . . . . . Total Robot Build Rating . | . . . . . . Part Schematics Acquired 1 | . . . 1 . . Parts Built . | . . . . . . Authchips . | . . . . . . Time . | . . . . . . Total Part Build Rating . | . . . . . . Parts Repaired . | . . . . . . Time . | . . . . . . Parts Recycled 1 | . 1 . . . . Recycled Matter . | . . . . . . Retrieved Matter . | . . . . . . Retrieved Components . | . . . . . . Parts Scanalyzed 1 | . . . 1 . . Part Schematics Acquired 1 | . . . 1 . . Parts Damaged . | . . . . . . Bothacking | -11 -10 -10 -9 -9 -9 ------------ Run | Yrd Mat Min Mat Sto Gar Used RIF Installer . | . . . . . . Robots Hacked . | . . . . . . Non-combat . | . . . . . . Combat . | . . . . . . Robot Hacks Applied . | . . . . . . Relay Couplers Released 14 | . . . . . 14 Machine Destruction 14 | . . . . . 14 Fabnet Peak Effective % . | . . . . . . Robots Rewired . | . . . . . . Allies Hacked . | . . . . . . Hacks Repelled . | . . . . . . Allies | -11 -10 -10 -9 -9 -9 -------- Run | Yrd Mat Min Mat Sto Gar Total Allies . | . . . . . . Largest Group . | . . . . . . Highest-Rated Group . | . . . . . . Highest-Rated Ally . | . . . . . . Total Orders . | . . . . . . Ally Attacks . | . . . . . . Total Damage . | . . . . . . Kills . | . . . . . . Allies Corrupted . | . . . . . . Allies Melted . | . . . . . . Intel | -11 -10 -10 -9 -9 -9 ------- Run | Yrd Mat Min Mat Sto Gar Robot Analysis Total . | . . . . . . Derelict Logs Recovered 2 | . . 2 . . . Drone Launches . | . . . . . . Drone Recoveries . | . . . . . . Exploration | -11 -10 -10 -9 -9 -9 ------------- Run | Yrd Mat Min Mat Sto Gar Turns Passed 1947 | 73 247 549 867 106 105 Spaces Moved 1045 | 49 87 333 420 93 63 Core 63 | 11 7 10 18 . 17 Treads . | . . . . . . Legs 823 | 38 80 323 382 . . Wheels 159 | . . . 20 93 46 Hover . | . . . . . . Flight . | . . . . . . Fastest Speed 50 | 50 50 50 90 90 50 Average Speed 149 | 104 143 154 174 90 83 Slowest Speed 260 | 120 190 190 260 90 150 Overloaded Moves . | . . . . . . Propulsion Burnouts . | . . . . . . Robots Hopped . | . . . . . . Cave-ins Triggered 1 | . . . 1 . . Exploration Rate (%) 25 | 3 26 65 35 10 15 Regions Visited 5 Branch Regions 2 Pre-discovered Areas 1 | . . 1 . . . Known Exits Taken 1 | . . . . 1 . Unknown Exits Taken 4 | 1 1 1 1 . . Scrap Searched . | . . . . . . Spaces Dug . | . . . . . . Terrain Destroyed 66 | . . . 56 6 4 Melee . | . . . . . . Projectile 3 | . . . 3 . . AOE 63 | . . . 53 6 4 Terrain Rammed . | . . . . . . Walls Destroyed . | . . . . . . Machines Disabled . | . . . . . . Actions | -11 -10 -10 -9 -9 -9 --------- Run | Yrd Mat Min Mat Sto Gar Total 1251 | 59 145 356 500 105 86 Wait 20 | . 5 1 14 . . Move 1041 | 48 87 332 419 92 63 Hop . | . . . . . . Pick Up 16 | . 4 2 9 1 . Fast Attach 28 | 7 3 5 11 . 2 Attach 9 | . 1 3 3 1 1 Detach 1 | . . . 1 . . Swap 16 | . 5 1 7 1 2 Drop 7 | . 1 . 6 . . Fire 103 | 4 37 9 27 8 18 Melee . | . . . . . . Ram 4 | . 2 . . 2 . Kick 6 | . . 3 3 . . Crush . | . . . . . . Escape Stasis . | . . . . . . Rewire . | . . . . . . Trap . | . . . . . . Miscellaneous . | . . . . . . Route ------- -11/Scrapyard -10/Materials -10/Mines -9/Materials -9/Storage -9/Garrison History --------- Turn | Location | Event 6 | -11/Scrapyard | Discovered new exit (range 16) 74 | -11/Scrapyard | Entered Materials 245 | -10/Materials | Discovered new exit (range 16) 297 | -10/Materials | Core integrity fell below 50% 303 | -10/Materials | Build established: Mutant 321 | -10/Materials | Entered Mines 343 | -10/Mines | Learned Materials non-interactive machine intel 350 | -10/Mines | Lost 8 parts (1p2n5w) 369 | -10/Mines | Met a Derelict who couldn't figure out how to use a Trap Extractor 472 | -10/Mines | Core integrity fell below 20% 556 | -10/Mines | Found the Drone Emporium 851 | -10/Mines | Discovered new exit (range 10) 870 | -10/Mines | Entered Materials 870 | -9/Materials | Evolved 2 slots: Propulsion x2 871 | -9/Materials | Loaded intel: 43 non-interactive machine locations 1632 | -9/Materials | Discovered new exit (range 11) 1674 | -9/Materials | Crushed by falling debris 1674 | -9/Materials | Core integrity fell below 50% 1703 | -9/Materials | Lost 9 parts (1p3n2u3w) 1737 | -9/Materials | Entered Storage 1833 | -9/Storage | Identified exit to Garrison 1843 | -9/Storage | Entered Garrison 1858 | -9/Garrison | Triggered checkpoint 1916 | -9/Garrison | Garrison Relay disabled 1916 | -9/Garrison | Garrison Relay disabled 1927 | -9/Garrison | Core integrity fell below 20% 1941 | -9/Garrison | Garrison Relay disabled 1948 | -9/Garrison | Destroyed by P-60 Hacker with Shock Rifle Last Messages --------------- Arm. Wheel destroyed. P-60 Hacker destroyed. Machine disabled. Rocket Launcher destroyed. Heat Sink destroyed. Emergency Access malfunctions. Acquired 25 matter. Garrison Relay disabled. Relay Coupler [Sentry] tumbles out of relay unit. Relay Coupler [Specialist] tumbles out of relay unit. Relay Coupler [Grunt] tumbles out of relay unit. Relay Coupler [Specialist] tumbles out of relay unit. Relay Coupler [NC] tumbles out of relay unit. Acquired Mic. Nuclear Core. P-60 Hacker destroyed. Acquired 22 matter. P-60 Hacker springs to life. Map ----- +----------------------------------------------------+ | | | | | | | | | | | | | | | | | | | | | | | | | | | | | | | | | | | ?????????????????????????????????????????????????? | | ?????????????????????????????????????????????????? | | ?????????????????????????????????????????????????? | | ?????????????????????????????????????????????????? | | ?????????????????????????????????????????????????? | | ???????????????????????#######???????????????????? | | ?????????????????????### """"###?????????????????? | | ?????????????????????# # "" # #?????????????????? | | ?????????????????????# @ | #?????????????????? | | ?????????????????????# ! = #?????????????????? | | ?????????????????????# % #?????????????????? | | ????????????????????## * ##????????????????? | | ????????????????????#" !!"#????????????????? | | ????????????????????#" ! #????????????????? | | ????????????????????#" ! ! !!"#????????????????? | | ????????????????????#" ! "#????????????????? | | ????????????????????#"" ; # ""#????????????????? | | ????????????????????###p# #p###????????????????? | | ??????????????????????### ###??????????????????? | | ????????????????????????# #????????????????????? | | ????????????????????????# ###????????????????????? | | ????????????????????????# #??????????????????????? | | ????????????????????????# #?#######??????????????? | | ????????????????????????# #?# #??????????????? | | ???????????????????######/###[= ###????????????? | | ???????????????????# #????????????? | | ???????????????????## ########### #????????????? | | ???????????????????#"""""#????????# #????????????? | | ???????????????????#######????????# #???#####????? | | ??????????????????????????????????# #???# #????? | | ????????????????????????????????### ##### #????? | | ????????????????????????????????# #????? | | ????????????????????????????????# #????? | +----------------------------------------------------+ Best States ------------- Heat Dissipation 38 Energy Generation 14 Energy Capacity 160 Matter Stores 300 Matter Capacity 300 Sight Range 16 Robot Scan Range 14 Terrain Scan Range 16 Terrain Scan Density 10 Armor Coverage 225 Evasion (%) 55 Item Schematics ----------------- Ion Engine | -9/Materials | Scanalyzed Robot Schematics ------------------ None Fabricated ------------ Nothing Alien Tech Used ----------------- None Achievements -------------- None Challenges ------------ None Game ------ Seed ArmoredLegLauncher Manual? 0 Play Time 00:17:10 Cumulative 2.7 hours Start 2024.04.01 @ 01:27:23 End 2024.04.01 @ 01:43:28 Sessions 1 Manual Loads 0 Difficulty Rogue Special Mode None Game No. 8 Rogue 8 Adventurer 0 Explorer 0 Win Type - Total 0 Types 0/0/0/0/0/0/0/0/0 Lore% 9 Gallery% 9 Achievement% 9 Wizard Run 0 Options --------- Layout 1 ASCII 0 Keyboard 0 Movement Mouse Keybinds 0 Fullscreen 1 Font 24/Smallcaps Map View 50x35 Zoom Use 0% Tactical HUD 0 Map Filters NONE Filters NONE Steam 1 RUN: ad9b1332-d234-479f-8099-75e0859b0d77